bitfinex-derivatives/quotes_BNBF0:USTF0_20251219
["timestamp","ask_amount","ask_price","bid_price","bid_amount"]
[1766148249626,1.16166186,847.75,846.42,0.88298274]
[1766148249926,1.16166186,847.74,846.42,0.88298274]
[1766148250226,1.16166186,847.73,846.42,0.88298274]
[1766148250529,1.16166186,847.72,846.42,0.88298274]
[1766148250726,1.16166186,847.71,846.42,0.88298274]
[1766148251030,1.16166186,847.7,846.42,0.88298274]
[1766148251329,1.16166186,847.69,846.42,0.88298274]
[1766148251529,1.16166186,847.68,846.42,0.88298274]
[1766148251729,1.16166186,847.67,846.42,0.88298274]
[1766148251926,1.16166186,847.66,846.42,0.88298274]
[1766148252130,1.16166186,847.65,846.42,0.88298274]
[1766148252330,1.16166186,847.64,846.42,0.88298274]
[1766148252525,1.16166186,847.63,846.42,0.88298274]
[1766148252727,1.16166186,847.62,846.42,0.88298274]
[1766148252931,1.16166186,847.61,846.42,0.88298274]
[1766148253131,1.16166186,847.6,846.42,0.88298274]
[1766148253334,1.16166186,847.59,846.42,0.88298274]
[1766148253531,1.16166186,847.58,846.42,0.88298274]
[1766148253830,1.16166186,847.57,846.42,0.88298274]
[1766148254028,1.16166186,847.56,846.42,0.88298274]
[1766148254333,1.16166186,847.55,846.42,0.88298274]
[1766148254530,1.16812716,847.76,846.42,0.88298274]
[1766148254531,1.16166186,847.54,846.42,0.88298274]
[1766148254735,1.16166186,847.53,846.42,0.88298274]
[1766148254932,1.16166186,847.52,846.42,0.88298274]
[1766148255135,1.16166186,847.51,846.42,0.88298274]
[1766148255333,1.16812716,847.75,846.42,0.88298274]
[1766148255630,1.16172858,847.74,846.42,0.88298274]
[1766148255833,1.16172858,847.73,846.42,0.88298274]
[1766148256135,1.16172858,847.72,846.42,0.88298274]
[1766148256334,1.16172858,847.71,846.42,0.88298274]
[1766148256533,1.16172858,847.7,846.42,0.88298274]
[1766148256733,1.16172858,847.69,846.42,0.88298274]
[1766148256931,1.16172858,847.68,846.42,0.88298274]
[1766148257134,1.16172858,847.67,846.42,0.88298274]
[1766148257436,1.16172858,847.66,846.43,0.88298274]
[1766148257631,1.16172858,847.65,846.43,0.88298274]
[1766148257830,1.16172858,847.64,846.43,0.88298274]
[1766148258032,1.16172858,847.63,846.43,0.88298274]
[1766148258338,1.16172858,847.62,846.43,0.88298274]
[1766148258533,1.16172858,847.61,846.43,0.88298274]
[1766148258737,1.16172858,847.6,846.43,0.88298274]
[1766148259037,1.16172858,847.59,846.43,0.88298274]
[1766148259240,1.16172858,847.58,846.43,0.88298274]
[1766148259439,1.16172858,847.57,846.43,0.88298274]
[1766148259636,1.16172858,847.56,846.43,0.88298274]
[1766148259836,1.16172858,847.55,846.43,0.88298274]
[1766148260040,1.16172858,847.54,846.43,0.88298274]
[1766148260240,1.16172858,847.53,846.43,0.88298274]
[1766148260437,1.16812716,847.74,846.43,0.88298274]
[1766148260438,1.16172858,847.52,846.43,0.88298274]
[1766148260641,1.16172858,847.51,846.43,0.88298274]
[1766148260837,1.16172858,847.5,846.43,0.88298274]
[1766148261043,1.16812716,847.74,846.43,0.88298274]
[1766148261237,1.16209693,847.73,846.43,0.88298274]
[1766148261439,1.16209693,847.72,846.43,0.88298274]
[1766148261640,1.16209693,847.71,846.43,0.88298274]
[1766148261840,1.16209693,847.7,846.43,0.88298274]
[1766148262042,1.16209693,847.69,846.43,0.88298274]
[1766148262243,1.16209693,847.68,846.43,0.88298274]
[1766148262440,1.16209693,847.67,846.43,0.88298274]
[1766148262640,1.16209693,847.66,846.43,0.88298274]
[1766148262839,1.16209693,847.65,846.43,0.88298274]
[1766148263043,1.16209693,847.64,846.43,0.88298274]
[1766148263243,1.16209693,847.63,846.44,0.88298274]
[1766148263444,1.16209693,847.62,846.44,0.88298274]
[1766148263641,1.16209693,847.61,846.44,0.88298274]
[1766148263845,1.16209693,847.6,846.44,0.88298274]
[1766148264044,1.16209693,847.59,846.44,0.88298274]
[1766148264242,1.16209693,847.58,846.44,0.88298274]
[1766148264448,1.16209693,847.57,846.44,0.88298274]
[1766148264645,1.16209693,847.56,846.44,0.88298274]
[1766148264848,1.16209693,847.55,846.44,0.88298274]
[1766148265045,1.16209693,847.54,846.44,0.88298274]
[1766148265248,1.16209693,847.53,846.44,0.88298274]
[1766148265445,1.16209693,847.52,846.44,0.88298274]
[1766148265745,1.16209693,847.51,846.44,0.88298274]
[1766148265945,1.16812716,847.73,846.44,0.88298274]
[1766148266145,1.16240266,847.72,846.44,0.88298274]
[1766148266345,1.16240266,847.71,846.44,0.88298274]
[1766148266644,1.16240266,847.7,846.44,0.88298274]
[1766148266945,1.16240266,847.69,846.44,0.88298274]
[1766148267143,1.16240266,847.68,846.44,0.88298274]
[1766148267348,1.16240266,847.67,846.45,0.88298274]
[1766148267545,1.16240266,847.66,846.45,0.88298274]
[1766148267745,1.16240266,847.65,846.45,0.88298274]
[1766148267946,1.16240266,847.64,846.45,0.88298274]
[1766148268146,1.16240266,847.63,846.44,0.88298274]
[1766148268350,1.16240266,847.62,846.44,0.88298274]
[1766148268550,1.16240266,847.61,846.44,0.88298274]
[1766148268750,1.16240266,847.6,846.44,0.88298274]
[1766148268951,1.16812716,847.71,846.44,0.88298274]
[1766148268952,1.16240266,847.59,846.44,0.88298274]
[1766148269152,1.16240266,847.58,846.44,0.88298274]
[1766148269350,1.16240266,847.57,846.44,0.88298274]
[1766148269554,1.16240266,847.56,846.44,0.88298274]
[1766148269748,1.16240266,847.55,846.44,0.88298274]
[1766148269949,1.16240266,847.54,846.44,0.88298274]
[1766148270154,1.16240266,847.53,846.44,0.88298274]
[1766148270355,1.16240266,847.52,846.45,0.88298274]
[1766148270552,1.16240266,847.51,846.45,0.88298274]
[1766148270753,1.16240266,847.5,846.45,0.88298274]
[1766148270956,1.16240266,847.49,846.45,0.88298274]
[1766148271153,1.16240266,847.48,846.45,0.88298274]
[1766148271357,1.16240266,847.47,846.45,0.88298274]
[1766148271657,1.16240266,847.46,846.45,0.88298274]
[1766148271853,1.16812716,847.7,846.45,0.88298274]
[1766148272068,1.16239172,847.69,846.45,0.88298274]
[1766148272361,1.16812716,847.64,846.4,0.88298274]
[1766148272563,1.16239172,847.63,846.4,0.88298274]
[1766148273260,2.33051888,847.63,846.4,0.88298274]
[1766148273461,1.16239172,847.62,846.4,0.88298274]
[1766148274458,1.16239172,847.62,846.41,0.88298274]
[1766148275463,2.33051888,847.62,846.41,0.88298274]
[1766148275661,1.16239172,847.61,846.41,0.88298274]
[1766148276468,2.33051888,847.61,846.42,0.88298274]
[1766148276663,1.16239172,847.6,846.42,0.88298274]
[1766148277063,1.16239172,847.59,846.42,0.88298274]
[1766148277268,1.16239172,847.58,846.43,0.88298274]
[1766148277466,1.16239172,847.57,846.43,0.88298274]
[1766148277667,1.16239172,847.56,846.43,0.88298274]
[1766148277866,1.16812716,847.61,846.43,0.88298274]
[1766148277867,1.16239172,847.55,846.43,0.88298274]
[1766148278071,1.16239172,847.54,846.43,0.88298274]
[1766148278263,1.16239172,847.53,846.44,0.88298274]
[1766148278465,1.16239172,847.52,846.44,0.88298274]
[1766148278665,1.16239172,847.51,846.44,0.88298274]
[1766148278869,1.16239172,847.5,846.44,0.88298274]
[1766148279169,1.16239172,847.49,846.44,0.88298274]
[1766148279468,1.16239172,847.48,846.45,0.88298274]
[1766148279670,1.16239172,847.47,846.45,0.88298274]
[1766148279867,1.16239172,847.46,846.45,0.88298274]
[1766148280065,1.16239172,847.45,846.45,0.88298274]
[1766148280270,1.16239172,847.44,846.46,0.88298274]
[1766148280471,1.16239172,847.43,846.46,0.88298274]
[1766148280771,1.16239172,847.42,846.46,0.88298274]
[1766148280970,1.16239172,847.41,846.46,0.88298274]
[1766148281168,1.16239172,847.4,846.46,0.88298274]
[1766148281371,1.16239172,847.39,846.47,0.88298274]
[1766148281572,1.16239172,847.38,846.47,0.88298274]
[1766148281772,1.16239172,847.37,846.47,0.88298274]
[1766148281973,1.16812716,847.57,846.47,0.88298274]
[1766148281974,1.16239172,847.36,846.47,0.88298274]
[1766148282272,1.16239172,847.35,846.47,0.88298274]
[1766148282472,1.16239172,847.34,846.48,0.88298274]
[1766148282773,1.16239172,847.33,846.48,0.88298274]
[1766148282969,1.16239172,847.32,846.48,0.88298274]
[1766148283269,1.16484142,847.31,846.49,0.88298274]
[1766148283575,1.16812716,847.55,846.49,0.88298274]
[1766148283773,1.1648414,847.54,846.49,0.88298274]
[1766148283973,1.1648414,847.53,846.49,0.88298274]
[1766148284171,1.1648414,847.52,846.49,0.88419666]
[1766148284372,1.1648414,847.51,846.5,0.88419666]
[1766148284570,1.1648414,847.5,846.5,0.88419666]
[1766148284770,1.1648414,847.49,846.5,0.88419666]
[1766148284975,1.1648414,847.48,846.5,0.88419666]
[1766148285175,1.1648414,847.47,846.5,0.88419666]
[1766148285373,1.1648414,847.47,846.35,1.1655277]
[1766148285374,1.1648414,847.46,846.52,0.88419666]
[1766148285576,1.1648414,847.45,846.52,0.88419666]
[1766148285775,1.1648414,847.44,846.52,0.88419666]
[1766148285972,1.1648414,847.43,846.52,0.88419666]
[1766148286171,1.16812716,847.53,846.52,0.88419666]
[1766148286172,1.1648414,847.42,846.52,0.88419666]
[1766148286375,1.1648414,847.41,846.54,0.88419666]
[1766148286577,1.1648414,847.4,846.54,0.88419666]
[1766148286772,1.1648414,847.39,846.54,0.88419666]
[1766148286972,1.1648414,847.38,846.54,0.88419666]
[1766148287276,1.1648414,847.37,846.54,0.88419666]
[1766148287473,1.1648414,847.36,846.54,0.88419666]
[1766148287677,1.1648414,847.35,846.54,0.88419666]
[1766148287873,1.1648414,847.34,846.54,0.88419666]
[1766148288078,1.1648414,847.33,846.54,0.88419666]
[1766148288278,1.1648414,847.32,846.54,0.88419666]
[1766148288474,1.1648414,847.31,846.54,0.88419666]
[1766148288679,1.1648414,847.3,846.54,0.88419666]
[1766148288876,1.1648414,847.29,846.54,0.88419666]
[1766148289076,1.1648414,847.28,846.54,0.88419666]
[1766148289277,1.1648414,847.27,846.54,0.88419666]
[1766148289477,1.1648414,847.26,846.54,0.88419666]
[1766148289677,1.1648414,847.25,846.54,0.88419666]
[1766148289878,1.1648414,847.24,846.54,0.88419666]
[1766148290081,1.16812716,847.5,846.54,0.88419666]
[1766148290380,1.17081961,847.49,846.54,0.88419666]
[1766148290578,1.17081961,847.48,846.54,0.88419666]
[1766148290777,1.17081961,847.47,846.54,0.88419666]
[1766148290981,1.17081961,847.46,846.54,0.88419666]
[1766148291178,1.17081961,847.45,846.54,0.88419666]
[1766148291384,1.17081961,847.44,846.54,0.88419666]
[1766148291681,1.17081961,847.43,846.54,0.88419666]
[1766148291977,1.17081961,847.42,846.54,0.88419666]
[1766148292178,1.17081961,847.41,846.54,0.88419666]
[1766148292476,1.17081961,847.4,846.54,0.88419666]
[1766148292681,1.17081961,847.39,846.54,0.88419666]
[1766148292978,1.17081961,847.38,846.54,0.88419666]
[1766148293182,1.17081961,847.37,846.54,0.88419666]
[1766148293379,1.17081961,847.36,846.54,0.88419666]
[1766148293578,1.17081961,847.35,846.54,0.88419666]
[1766148293783,1.17081961,847.34,846.54,0.88419666]
[1766148293979,1.17081961,847.33,846.54,0.88419666]
[1766148294180,1.17081961,847.32,846.54,0.88419666]
[1766148294383,1.17081961,847.31,846.54,0.88419666]
[1766148294684,1.17081961,847.3,846.54,0.88419666]
[1766148294885,1.17081961,847.29,846.54,0.88419666]
[1766148295082,1.17081961,847.28,846.54,0.88419666]
[1766148295281,1.17081961,847.27,846.54,0.88419666]
[1766148295483,1.17081961,847.26,846.54,0.88419666]
[1766148295686,1.17081961,847.25,846.54,0.88419666]
[1766148295887,1.16812716,847.5,846.54,0.88419666]
[1766148296084,1.17073599,847.49,846.54,0.88419666]
[1766148296287,1.17073599,847.48,846.54,0.88419666]
[1766148296587,1.17073599,847.47,846.54,0.88419666]
[1766148296788,1.17073599,847.46,846.54,0.88419666]
[1766148296986,1.17073599,847.45,846.54,0.88419666]
[1766148297184,1.17073599,847.44,846.54,0.88419666]
[1766148297486,1.17073599,847.43,846.54,0.88419666]
[1766148297684,1.17073599,847.42,846.54,0.88419666]
[1766148297887,1.17073599,847.41,846.54,0.88419666]
[1766148298185,1.17073599,847.4,846.54,0.88419666]
[1766148298385,1.17073599,847.39,846.54,0.88419666]
[1766148298584,1.17073599,847.38,846.54,0.88419666]
[1766148298787,1.17073599,847.37,846.54,0.88419666]
[1766148298983,1.17073599,847.36,846.54,0.88419666]
[1766148299188,1.17073599,847.35,846.54,0.88419666]
[1766148299384,1.17073599,847.34,846.54,0.88419666]
[1766148299684,1.17073599,847.33,846.54,0.88419666]
[1766148299887,1.17073599,847.32,846.54,0.88419666]
[1766148300088,1.17073599,847.31,846.54,0.88419666]
[1766148300383,1.17073599,847.3,846.54,0.88419666]
[1766148300586,1.17073599,847.29,846.54,0.88419666]
[1766148300786,1.17073599,847.28,846.54,0.88419666]
[1766148300984,1.17073599,847.27,846.54,0.88419666]
[1766148301187,1.17073599,847.26,846.54,0.88419666]
[1766148301390,1.17073599,847.25,846.54,0.88419666]
[1766148301589,1.16812716,847.5,846.54,0.88419666]
[1766148301789,1.17071486,847.49,846.54,0.88419666]
[1766148302089,1.17071486,847.48,846.54,0.88419666]
[1766148302389,1.17071486,847.47,846.54,0.88419666]
[1766148302589,1.17071486,847.46,846.54,0.88419666]
[1766148302889,1.17071486,847.45,846.54,0.88419666]
[1766148303089,1.17071486,847.44,846.54,0.88419666]
[1766148303289,1.17071486,847.43,846.54,0.88419666]
[1766148303586,1.16812716,847.5,846.54,0.88419666]
[1766148303587,1.17071486,847.42,846.54,0.88419666]
[1766148303786,1.17071486,847.41,846.54,0.88419666]
[1766148303987,1.17071486,847.4,846.54,0.88419666]
[1766148304191,1.17071486,847.39,846.54,0.88419666]
[1766148304386,1.17071486,847.38,846.54,0.88419666]
[1766148304586,1.17071486,847.37,846.54,0.88419666]
[1766148304791,1.17071486,847.36,846.54,0.88419666]
[1766148304992,1.17071486,847.35,846.54,0.88419666]
[1766148305193,1.17071486,847.34,846.54,0.88419666]
[1766148305389,1.17071486,847.33,846.54,0.88419666]
[1766148305689,1.17071486,847.32,846.54,0.88419666]
[1766148305893,1.17071486,847.31,846.54,0.88419666]
[1766148306190,1.17071486,847.3,846.54,0.88419666]
[1766148306389,1.17071486,847.29,846.54,0.88419666]
[1766148306592,1.17071486,847.28,846.54,0.88419666]
[1766148306792,1.17071486,847.27,846.54,0.88419666]
[1766148306988,1.17071486,847.26,846.54,0.88419666]
[1766148307192,1.17071486,847.25,846.54,0.88419666]
[1766148307493,1.16812716,847.5,846.54,0.88419666]
[1766148307690,1.17049484,847.49,846.54,0.88419666]
[1766148307889,1.17049484,847.48,846.54,0.88419666]
[1766148308088,1.17049484,847.47,846.54,0.88419666]
[1766148308290,1.17049484,847.46,846.54,0.88419666]
[1766148308588,1.16812716,847.5,846.54,0.88419666]
[1766148308589,1.17049484,847.45,846.54,0.88419666]
[1766148308792,0.20544912,847.24,846.54,0.88419666]
[1766148317402,0.20544912,847.24,846.55,0.88419666]
[1766148317896,0.20544912,847.24,846.54,0.88419666]
[1766148318302,0.20544912,847.24,846.55,0.88419666]
[1766148323302,1.17042913,847.23,846.55,0.88419666]
[1766148323505,0.20544912,847.24,846.55,0.88419666]
[1766148323807,1.17042913,847.23,846.55,0.88419666]
[1766148324007,0.20544912,847.24,846.55,0.88419666]
[1766148324215,1.17042913,847.23,846.55,0.88419666]
[1766148324408,0.20544912,847.24,846.56,0.88419666]
[1766148324608,1.17048397,847.23,846.56,0.88419666]
[1766148324808,0.20544912,847.24,846.56,0.88419666]
[1766148325008,1.17048397,847.23,846.56,0.88419666]
[1766148325206,0.20544912,847.24,846.56,0.88419666]
[1766148325409,1.17054528,847.23,846.56,0.88419666]
[1766148325609,0.20544912,847.24,846.56,0.88419666]
[1766148325810,1.17054532,847.23,846.56,0.88419666]
[1766148326008,0.20544912,847.24,846.56,0.88419666]
[1766148326210,1.17054532,847.23,846.56,0.88419666]
[1766148326511,0.20544912,847.24,846.56,0.88419666]
[1766148326711,1.17061452,847.23,846.56,0.88419666]
[1766148327010,0.20544912,847.24,846.56,0.88419666]
[1766148327210,1.17061452,847.23,846.56,0.88419666]
[1766148327412,0.20544912,847.24,846.57,0.88419666]
[1766148327707,1.17069416,847.23,846.57,0.88419666]
[1766148328008,0.20544912,847.24,846.57,0.88419666]
[1766148328211,1.17069416,847.23,846.57,0.88419666]
[1766148328510,1.17069416,847.22,846.57,0.88419666]
[1766148328710,0.20544912,847.24,846.57,0.88419666]
[1766148328909,1.17076011,847.23,846.57,0.88419666]
[1766148329107,1.17076011,847.22,846.57,0.88419666]
[1766148329410,0.20544912,847.24,846.57,0.88419666]
[1766148329611,1.17083732,847.23,846.57,0.88419666]
[1766148329810,1.17083732,847.22,846.57,0.88419666]
[1766148330010,0.20544912,847.24,846.57,0.88419666]
[1766148330208,1.17083732,847.23,846.57,0.88419666]
[1766148330409,1.17083732,847.22,846.58,0.88419666]
[1766148330608,0.20544912,847.24,846.58,0.88419666]
[1766148330911,1.17093178,847.23,846.58,0.88419666]
[1766148331108,1.17093178,847.22,846.58,0.88419666]
[1766148331309,1.17105614,847.21,846.58,0.88419666]
[1766148331508,0.20544912,847.24,846.59,0.88419666]
[1766148331713,1.17105878,847.23,846.59,0.88419666]
[1766148331908,1.17105878,847.22,846.59,0.88419666]
[1766148332109,1.17105878,847.21,846.59,0.88419666]
[1766148332312,1.17134636,847.2,846.59,0.88419666]
[1766148332612,0.20544912,847.24,846.59,0.88419666]
[1766148332811,1.17134654,847.23,846.59,0.88419666]
[1766148333013,1.17134654,847.22,846.59,0.88419666]
[1766148333213,1.17134654,847.21,846.59,0.88419666]
[1766148333417,1.17134654,847.2,846.59,0.88419666]
[1766148333611,0.20544912,847.24,846.59,0.88419666]
[1766148333815,1.17134907,847.23,846.59,0.88419666]
[1766148334024,1.17134907,847.22,846.59,0.88419666]
[1766148334210,1.17134907,847.21,846.59,0.88419666]
[1766148334418,1.17134907,847.2,846.59,0.88419666]
[1766148334619,0.20544912,847.24,846.59,0.88419666]
[1766148334817,1.17135218,847.23,846.59,0.88419666]
[1766148335017,1.17135218,847.22,846.61,0.88419666]
[1766148335221,0.20544912,847.24,846.61,0.88419666]
[1766148335422,0.20544912,847.24,846.64,0.88419666]
[1766148336217,0.20544912,847.24,846.63,0.88419666]
[1766148339323,0.20544912,847.24,846.62,0.88419666]
[1766148342724,0.20544912,847.24,846.61,0.88419666]
[1766148359943,0.20544912,847.24,846.65,0.88419666]
[1766148362743,1.16812716,847.6,846.65,0.88419666]
[1766148362946,0.20540911,847.34,846.65,0.88419666]
[1766148363145,0.20540911,847.34,846.7,0.88419666]
[1766148365244,0.20540911,847.34,846.69,0.88419666]
[1766148367346,0.20540911,847.34,846.68,0.88419666]
[1766148370548,0.20540911,847.34,846.67,0.88419666]
[1766148375053,0.20540911,847.34,846.66,0.88419666]
[1766148378355,0.20540911,847.34,846.65,0.88419666]
[1766148378958,0.20540911,847.34,846.58,0.88419666]
[1766148379358,0.20540911,847.34,846.57,0.88419666]
[1766148379961,1.16848178,847.33,846.57,0.88419666]
[1766148380260,1.16848178,847.32,846.32,0.88419666]
[1766148380462,1.16848178,847.31,846.32,0.88419666]
[1766148380660,0.20540911,847.34,846.32,0.88419666]
[1766148380661,1.16848178,847.3,846.32,0.88419666]
[1766148380856,1.16848178,847.29,846.32,0.88419666]
[1766148381056,1.16848178,847.28,846.32,0.88419666]
[1766148381257,1.16848178,847.27,846.3,0.88419666]
[1766148381461,1.16848178,847.26,846.3,0.88419666]
[1766148381661,1.16848178,847.25,846.3,0.88419666]
[1766148381961,1.16848178,847.24,846.3,0.88419666]
[1766148382257,1.16848178,847.23,846.3,0.88419666]
[1766148382461,1.16848178,847.22,846.3,0.88419666]
[1766148382661,0.20540911,847.34,846.3,0.88419666]
[1766148382662,1.16848178,847.21,846.3,0.88419666]
[1766148382861,1.16848178,847.2,846.3,0.88419666]
[1766148383062,1.16848178,847.19,846.3,0.88419666]
[1766148383262,1.16848178,847.18,846.29,0.88419666]
[1766148383558,1.16848178,847.17,846.29,0.88419666]
[1766148383763,1.16848178,847.16,846.29,0.88419666]
[1766148383963,1.16848178,847.15,846.29,0.88419666]
[1766148384168,0.20540911,847.34,846.29,0.88419666]
[1766148384365,1.16698731,847.33,846.35,0.88419666]
[1766148384561,0.20540911,847.34,846.5,0.88419666]
[1766148386263,0.20540911,847.34,846.49,0.88419666]
[1766148388370,0.20540911,847.34,846.5,0.88419666]
[1766148401785,1.16810328,847.33,846.46,0.88419666]
[1766148401982,1.16810328,847.32,846.46,0.88419666]
[1766148402185,0.20540911,847.34,846.46,0.88419666]
[1766148402481,1.1680873,847.33,846.46,0.88419666]
[1766148402689,1.1680873,847.32,846.46,0.88419666]
[1766148402891,0.20540911,847.34,846.46,0.88419666]
[1766148403081,1.16808737,847.33,846.46,0.88419666]
[1766148403281,1.16808737,847.32,846.46,0.88419666]
[1766148403483,0.20540911,847.34,846.46,0.88419666]
[1766148403686,1.16807195,847.33,846.46,0.88419666]
[1766148403886,1.16807195,847.32,846.46,0.88419666]
[1766148404086,0.20540911,847.34,846.46,0.88419666]
[1766148404287,1.16808823,847.33,846.46,0.88419666]
[1766148404489,1.16808823,847.32,846.46,0.88419666]
[1766148404783,0.20540911,847.34,846.46,0.88419666]
[1766148404987,1.16805716,847.33,846.46,0.88419666]
[1766148405186,1.16805716,847.32,846.46,0.88419666]
[1766148405384,0.20540911,847.34,846.46,0.88419666]
[1766148405592,1.16804286,847.33,846.46,0.88419666]
[1766148405783,1.16804286,847.32,846.46,0.88419666]
[1766148405985,0.20540911,847.34,846.46,0.88419666]
[1766148406183,1.16804286,847.33,846.46,0.88419666]
[1766148406386,1.16804286,847.32,846.46,0.88419666]
[1766148406688,0.20540911,847.34,846.46,0.88419666]
[1766148406885,1.16802915,847.33,846.46,0.88419666]
[1766148407085,1.16802915,847.32,846.45,0.88419666]
[1766148407285,0.20540911,847.34,846.45,0.88419666]
[1766148407488,1.16801183,847.33,846.45,0.88419666]
[1766148407788,1.16801183,847.32,846.45,0.88419666]
[1766148408088,0.20540911,847.34,846.45,0.88419666]
[1766148408389,1.16832375,847.33,846.4,0.88419666]
[1766148408588,1.16832375,847.32,846.4,0.88419666]
[1766148408795,1.16832375,847.31,846.4,0.88419666]
[1766148409088,1.16832375,847.3,846.4,0.88419666]
[1766148409287,1.16832375,847.29,846.39,0.88419666]
[1766148409489,1.16832375,847.28,846.39,0.88419666]
[1766148409689,1.16832375,847.27,846.39,0.88419666]
[1766148409885,1.16832375,847.26,846.39,0.88419666]
[1766148410189,0.20540911,847.34,846.39,0.88419666]
[1766148410389,1.16800178,847.33,846.39,0.88419666]
[1766148410689,1.16800178,847.32,846.39,0.88419666]
[1766148410892,1.16800178,847.31,846.39,0.88419666]
[1766148411186,1.16800178,847.3,846.39,0.88419666]
[1766148411386,1.16800178,847.29,846.39,0.88419666]
[1766148411590,1.16800178,847.28,846.39,0.88419666]
[1766148411891,0.20540911,847.34,846.39,0.88419666]
[1766148412092,1.16843493,847.33,846.39,0.88419666]
[1766148412292,1.16843493,847.32,846.39,0.88419666]
[1766148412490,1.16843493,847.31,846.39,0.88419666]
[1766148412687,1.16843493,847.3,846.39,0.88419666]
[1766148412892,1.16843493,847.29,846.39,0.88419666]
[1766148413191,1.16843493,847.28,846.39,0.88419666]
[1766148413396,1.16843493,847.27,846.39,0.88419666]
[1766148413599,0.20540911,847.34,846.39,0.88419666]
[1766148413893,1.16837596,847.33,846.39,0.88419666]
[1766148414088,1.16837596,847.32,846.39,0.88419666]
[1766148414293,1.16837596,847.31,846.39,0.88419666]
[1766148414589,1.16837596,847.3,846.39,0.88419666]
[1766148414788,1.16837596,847.29,846.39,0.88419666]
[1766148414989,1.16837596,847.28,846.39,0.88419666]
[1766148415190,1.16837596,847.27,846.39,0.88419666]
[1766148415393,0.20540911,847.34,846.38,0.88419666]
[1766148415692,1.16867985,847.33,846.38,0.88419666]
[1766148415892,1.16867985,847.32,846.34,0.88419666]
[1766148416092,1.16867985,847.31,846.34,0.88419666]
[1766148416289,1.16867985,847.3,846.34,0.88419666]
[1766148416494,1.16867985,847.29,846.34,0.88419666]
[1766148416694,1.16867985,847.28,846.34,0.88419666]
[1766148416990,1.16867985,847.27,846.34,0.88419666]
[1766148417188,0.20540911,847.34,846.34,0.88419666]
[1766148417189,1.16867985,847.26,846.34,0.88419666]
[1766148417390,1.16867985,847.25,846.34,0.88419666]
[1766148417594,1.16867985,847.24,846.34,0.88419666]
[1766148417793,1.16867985,847.23,846.34,0.88419666]
[1766148417996,0.20540911,847.34,846.34,0.88419666]
[1766148418291,1.16888155,847.33,846.33,0.88419666]
[1766148418495,1.16888155,847.32,846.33,0.88419666]
[1766148418692,1.16901064,847.31,846.33,0.88419666]
[1766148418991,1.16901064,847.3,846.33,0.88419666]
[1766148419197,1.16901064,847.29,846.33,0.88419666]
[1766148419396,1.16901064,847.28,846.33,0.88419666]
[1766148419597,1.16901064,847.27,846.33,0.88419666]
[1766148419800,1.16901064,847.26,846.33,0.88419666]
[1766148420095,1.16901064,847.25,846.33,0.88419666]
[1766148420294,1.16901064,847.24,846.33,0.88419666]
[1766148420499,1.16901064,847.23,846.33,0.88419666]
[1766148420699,0.20540911,847.34,846.33,0.88419666]
[1766148420894,1.16895197,847.33,846.33,0.88419666]
[1766148421099,1.16895197,847.32,846.33,0.88419666]
[1766148421300,1.16895197,847.31,846.33,0.88419666]
[1766148421596,1.16895197,847.3,846.33,0.88419666]
[1766148421901,1.16895197,847.29,846.33,0.88419666]
[1766148422199,1.16895197,847.28,846.33,0.88419666]
[1766148422496,1.16895197,847.27,846.33,0.88419666]
[1766148422699,1.16895197,847.26,846.33,0.88419666]
[1766148422899,1.16895197,847.25,846.33,0.88419666]
[1766148423100,1.16895197,847.24,846.33,0.88419666]
[1766148423297,0.20540911,847.34,846.33,0.88419666]
[1766148423501,1.16852305,847.33,846.33,0.88419666]
[1766148423702,1.16852305,847.32,846.33,0.88419666]
[1766148423904,1.16811266,847.31,846.33,0.88419666]
[1766148424103,1.16811266,847.3,846.33,0.88419666]
[1766148424301,1.16811266,847.29,846.33,0.88419666]
[1766148424503,1.16811266,847.28,846.33,0.88419666]
[1766148424709,1.16811266,847.27,846.33,0.88419666]
[1766148424898,1.16811266,847.26,846.33,0.88419666]
[1766148425098,1.16811266,847.25,846.33,0.88419666]
[1766148425298,0.20540911,847.34,846.34,0.88419666]
[1766148425504,1.16803433,847.33,846.35,0.88419666]
[1766148425702,1.16803433,847.32,846.35,0.88419666]
[1766148426001,1.16803433,847.31,846.35,0.88419666]
[1766148426200,1.16803433,847.3,846.36,0.88419666]
[1766148426403,1.16803433,847.29,846.36,0.88419666]
[1766148426601,1.16803433,847.28,846.36,0.88419666]
[1766148426805,1.16803433,847.27,846.36,0.88419666]
[1766148427004,1.16803433,847.26,846.36,0.88419666]
[1766148427206,0.20540911,847.34,846.36,0.88419666]
[1766148427508,1.16814212,847.33,846.36,0.88419666]
[1766148427807,1.16814212,847.32,846.36,0.88419666]
[1766148428109,1.16814212,847.31,846.36,0.88419666]
[1766148428306,1.16814212,847.3,846.36,0.88419666]
[1766148428508,1.16814212,847.29,846.36,0.88419666]
[1766148428708,1.16814212,847.28,846.36,0.88419666]
[1766148428908,1.16814212,847.27,846.36,0.88419666]
[1766148429110,1.16814212,847.26,846.36,0.88419666]
[1766148429309,1.16814212,847.25,846.36,0.88419666]
[1766148429512,0.20540911,847.34,846.36,0.88419666]
[1766148429711,1.16828753,847.33,846.36,0.88419666]
[1766148429907,1.16828753,847.32,846.36,0.88419666]
[1766148430110,1.16828753,847.31,846.36,0.88419666]
[1766148430412,1.16828753,847.3,846.37,0.88419666]